fUSD/lending_fUSD_20240121
["ID","MTS","AMOUNT","RATE_DAILY","PERIOD"]
[312386381,1705852239791,-520.0,0.00028727,2]
[312386382,1705852239800,-1000.0,0.00028767,2]
[312386384,1705852239810,-151.05372464,0.00028882,2]
[312386387,1705852239819,-175.76659458,0.00028903,2]
[312386388,1705852239829,-480.0,0.0002898,2]
[312386390,1705852239837,-150.0,0.00028999,2]
[312386392,1705852239847,-4671.28418992,0.00029082,2]
[312386394,1705852239856,-1287.21,0.00029291,2]
[312386396,1705852239866,-155.47856455,0.000295,3]
[312386398,1705852239875,-731.25712485,0.000298,2]
[312386400,1705852239884,-175.58250697,0.000298,2]
[312386402,1705852239893,-151.05372464,0.00029895,2]
[312386404,1705852239902,-150.0,0.00029999,2]
[312386406,1705852239911,-100000.0,0.0003,2]
[312386408,1705852239920,-357.91955435,0.0003,2]
[312386410,1705852239930,-296.75833238,0.0003,2]
[312386412,1705852239942,-764.11347582,0.0003,4]
[312386414,1705852239951,-155.0,0.0003,2]
[312386416,1705852239961,-590.49053743,0.0003,4]
[312386418,1705852239970,-582.86728053,0.0003,2]
[312386420,1705852239981,-2164.18588237,0.0003,4]
[312386422,1705852239990,-192.291184,0.0003,2]
[312386424,1705852240000,-9643.13201467,0.0003,2]
[312386426,1705852240009,-600.0,0.0003,2]
[312386428,1705852240021,-2894.06638396,0.0003,2]
[312386430,1705852240031,-1450.0,0.0003,3]
[312386432,1705852240041,-150.0,0.0003,7]
[312386434,1705852240050,-185.82104,0.0003,2]
[312386436,1705852240059,-185.82104,0.0003,2]
[312386438,1705852240069,-185.82104,0.0003,2]
[312386440,1705852240078,-185.82105,0.0003,2]
[312386442,1705852240087,-185.82104,0.0003,2]
[312386444,1705852240096,-185.82105,0.0003,2]
[312386446,1705852240107,-450.0,0.0003002,3]
[312386448,1705852240117,-1000.0,0.00030136,2]
[312386450,1705852240127,-152.04,0.00030137,2]
[312386452,1705852240136,-153.98,0.00030137,2]
[312386454,1705852240146,-455.9219456,0.00030186,4]
[312386456,1705852240154,-219.45831107,0.00030186,4]
[312386458,1705852240164,-219.45831106,0.00030186,4]
[312386460,1705852240173,-438.91662213,0.00030186,4]
[312386462,1705852240183,-10860.0,0.00030379,5]
[312386464,1705852240191,-328.85,0.00030442,2]
[312386465,1705852240201,-4671.28418992,0.00030627,2]
[312386467,1705852240210,-175.76659458,0.00030909,2]
[312386469,1705852240220,-151.05372464,0.00030909,2]
[312386471,1705852240229,-176.80681095,0.00030909,18]
[312386474,1705852240240,-150.0,0.00030999,2]
[312386476,1705852240253,-1080147.65263408,0.00030999,3]
[312386478,1705852240262,-100000.0,0.00031,2]
[312386480,1705852240272,-520.0,0.00031339,2]
[312386482,1705852240282,-150.0,0.00031488,4]
[312386483,1705852240293,-1000.0,0.000315,2]
[312386486,1705852240303,-1000.0,0.00031506,2]
[312386488,1705852240312,-179.66,0.00031507,2]
[312386489,1705852240322,-480.0,0.00031615,2]
[312386491,1705852240331,-152.04,0.00031644,2]
[312386493,1705852240340,-389664.387455,0.000318,3]
[312386495,1705852240350,-150.0,0.00031999,2]
[312386497,1705852240359,-100000.0,0.00032,2]
[312386499,1705852240369,-130707.51730686,0.00032,2]
[312386501,1705852240379,-263.89358247,0.00032,2]
[312386503,1705852240388,-13085.45929543,0.00032,4]
[312386505,1705852240397,-163530.9992658,0.00032,7]
[312386587,1705852241298,-1607.7492,0.00032,7]
[312386590,1705852241310,-2630.38767471,0.00032,7]
[312386592,1705852241327,-738.21863589,0.00032,7]
[312386595,1705852241338,-510.94642236,0.00032,7]
[312386596,1705852241350,-493.59000261,0.00032,7]
[312386599,1705852241367,-30488.10879863,0.00032,7]
[312386600,1705852241377,-1500.0,0.00032,3]
[312386602,1705852241386,-205.0,0.00032071,17]
[312386604,1705852241395,-4671.28418992,0.00032173,3]
[312386605,1705852241405,-24938.32,0.00032232,30]
[312386608,1705852241416,-16721.19,0.00032232,2]
[312386609,1705852241427,-505.56367547,0.00032299,2]
[312386611,1705852241438,-657.92308016,0.000325,2]
[312386613,1705852241448,-450.0,0.000325,3]
[312386615,1705852241458,-455.9219456,0.00032614,6]
[312386617,1705852241467,-219.45831107,0.00032614,6]
[312386618,1705852241477,-219.45831106,0.00032614,6]
[312386620,1705852241486,-438.91662213,0.00032614,6]
[312386621,1705852241496,-1377.3390751,0.00032691,2]
[312386622,1705852241505,-328.85,0.00032706,2]
[312386623,1705852241515,-177.7600934,0.00032718,7]
[312386624,1705852241524,-767.00484242,0.00032724,7]
[312386625,1705852241534,-176.20343821,0.00032731,7]
[312386626,1705852241543,-500.0,0.00032876,2]
[312386627,1705852241552,-1000.0,0.00032876,2]
[312386628,1705852241562,-1141.71,0.00032877,15]
[312386629,1705852241571,-157.35730316,0.00032917,7]
[312386630,1705852241581,-155.38772511,0.00032952,7]
[312386631,1705852241590,-150.0,0.00032999,2]
[312386632,1705852241599,-100000.0,0.00033,3]
[312386633,1705852241609,-14357.55636947,0.00033,4]
[312386635,1705852241618,-155.0,0.00033,4]
[312386637,1705852241627,-158.65195984,0.00033067,7]
[312386639,1705852241637,-157.48867627,0.00033082,7]
[312386640,1705852241646,-155.38772511,0.00033086,7]
[312386641,1705852241656,-152.04,0.00033151,2]
[312386642,1705852241665,-176.80681091,0.00033157,21]
[312386643,1705852241674,-157.397368,0.00033251,7]
[312386645,1705852241684,-157.35730316,0.00033313,7]
[312386647,1705852241693,-1469.75757077,0.00033337,7]
[312386649,1705852241702,-151.70197653,0.00033385,7]
[312386651,1705852241712,-151.36290719,0.00033387,7]
[312386653,1705852241721,-151.36290719,0.00033588,7]
[312386655,1705852241730,-156.53560062,0.00033608,7]
[312386657,1705852241740,-767.00484242,0.00033639,7]
[312386659,1705852241749,-155.43671717,0.00033663,7]
[312386661,1705852241758,-162.55274178,0.00033716,7]
[312386662,1705852241767,-4671.28418992,0.00033718,5]
[312386664,1705852241778,-158.65195984,0.0003376,7]
[312386667,1705852241787,-401.77,0.00033896,2]
[312386671,1705852241815,-401.94,0.00033896,2]
[312386674,1705852241836,-961.87,0.00033896,2]
[312386677,1705852241857,-941.86,0.00033896,2]
[312386680,1705852241878,-401.94,0.00033896,2]
[312386683,1705852241894,-941.86,0.00033896,2]
[312386685,1705852241912,-401.94,0.00033896,2]
[312386688,1705852241930,-941.86,0.00033896,2]
[312386689,1705852241949,-401.94,0.00033896,2]
[312386690,1705852241971,-3976.33219432,0.00033908,8]
[312386691,1705852241988,-5096.32148217,0.00033908,10]
[312386692,1705852242010,-86734.03512228,0.00033908,10]
[312386693,1705852242027,-9163.11786649,0.00033908,8]
[312386694,1705852242040,-20791.38423181,0.00033908,10]
[312386695,1705852242062,-150.0,0.00033999,2]
[312386696,1705852242076,-25498.66447883,0.00034,4]
[312386697,1705852242110,-74501.33552117,0.00034,4]
[312386698,1705852242129,-500.0,0.00034,2]
[312386699,1705852242147,-441.72365449,0.00034,6]
[312386700,1705852242163,-1000.0,0.00034,4]
[312386701,1705852242180,-1500.0,0.00034,15]
[312386702,1705852242197,-1550.0,0.00034,3]
[312386703,1705852242213,-1000.0,0.00034108,2]
[312386704,1705852242229,-767.00484242,0.00034132,7]
[312386705,1705852242246,-157.48867627,0.0003418,7]
[312386706,1705852242263,-1000.0,0.000342,2]
[312386707,1705852242282,-1000.0,0.00034246,2]
[312386708,1705852242298,-767.00484242,0.00034288,7]
[312386709,1705852242313,-155.38772511,0.00034324,7]
[312386710,1705852242330,-158.11921244,0.00034339,7]
[312386711,1705852242346,-433.9656394,0.00034464,2]
[312386712,1705852242363,-1469.75757077,0.00034481,7]
[312386713,1705852242378,-152.04,0.00034658,2]
[312386714,1705852242394,-941.86,0.00034855,2]
[312386715,1705852242410,-401.94,0.00034855,2]
[312386716,1705852242425,-941.86,0.00034855,2]
[312386717,1705852242441,-941.86,0.00034855,2]
[312386718,1705852242458,-802.09,0.00034855,2]
[312386719,1705852242474,-941.86,0.00034855,2]
[312386720,1705852242490,-614.57623663,0.000349,2]
[312386721,1705852242506,-512.27818094,0.000349,2]
[312386722,1705852242522,-512.27818094,0.000349,2]
[312386723,1705852242538,-512.27818094,0.000349,2]
[312386724,1705852242557,-512.27818094,0.000349,2]
[312386725,1705852242579,-151.36290719,0.00034914,7]
[312386726,1705852242601,-157.35730316,0.00034942,7]
[312386727,1705852242620,-155.38772511,0.00034962,7]
[312386728,1705852242637,-328.85,0.0003497,2]
[312386729,1705852242655,-871.09976891,0.0003498,3]
[312386730,1705852242673,-2377.83519676,0.0003498,14]
[312386731,1705852242689,-157.93510011,0.00034986,7]
[312386732,1705852242706,-150.0,0.00034999,2]
[312386733,1705852242723,-100000.0,0.00035,5]
[312386734,1705852242738,-155.0,0.00035,2]
[312386735,1705852242754,-1500.0,0.00035,30]
[312386736,1705852242770,-15748.78189765,0.00035,7]
[312386737,1705852242787,-155.0,0.00035001,5]
[312386738,1705852242804,-150.0,0.00035028,2]
[312386739,1705852242819,-455.9219456,0.00035043,7]
[312386740,1705852242834,-219.45831107,0.00035043,7]
[312386741,1705852242849,-219.45831106,0.00035043,7]
[312386742,1705852242865,-438.91662213,0.00035043,7]
[312386744,1705852242879,-151.70197653,0.00035072,7]
[312386745,1705852242894,-279.39505824,0.00035083,7]
[312386746,1705852242909,-168.18168136,0.00035098,7]
[312386747,1705852242924,-279.39505824,0.00035128,7]
[312386748,1705852242941,-155.43671717,0.00035155,7]
[312386752,1705852242956,-157.35730316,0.00035225,7]
[312386754,1705852242971,-173.89946186,0.00035226,7]
[312386755,1705852242986,-158.11921244,0.00035243,7]
[312386756,1705852243001,-150.0,0.00035243,2]
[312386760,1705852243017,-1469.75757077,0.00035255,7]
[312386765,1705852243034,-4671.28418992,0.00035264,7]
[312386768,1705852243050,-151.36290719,0.00035268,7]
[312386773,1705852243066,-412.77,0.00035332,7]
[312386775,1705852243082,-155.38772511,0.00035392,7]
[312386778,1705852243098,-176.80681091,0.00035405,25]
[312386781,1705852243114,-150.0,0.00035433,2]
[312386782,1705852243129,-151.46322498,0.00035442,7]
[312386783,1705852243143,-767.00484242,0.00035463,7]
[312386784,1705852243162,-1500.0,0.0003551,2]
[312386785,1705852243178,-157.35730316,0.00035542,7]
[312386786,1705852243194,-205.0,0.00035562,23]
[312386787,1705852243210,-1500.0,0.00035569,2]
[312386788,1705852243225,-150.0,0.0003557,2]
[312386789,1705852243243,-279.39505824,0.00035574,7]
[312386790,1705852243259,-1500.0,0.00035591,2]
[312386791,1705852243274,-1594.09,0.00035606,10]
[312386792,1705852243291,-1328.41,0.00035606,10]
[312386793,1705852243306,-1107.01,0.00035606,10]
[312386794,1705852243323,-500.0,0.00035616,60]
[312386795,1705852243338,-500.0,0.00035616,61]
[312386797,1705852243353,-500.0,0.00035616,62]
[312386800,1705852243368,-500.0,0.00035616,63]
[312386802,1705852243385,-500.0,0.00035616,64]
[312386803,1705852243401,-500.0,0.00035616,65]
[312386806,1705852243416,-500.0,0.00035616,66]
[312386809,1705852243432,-281.52,0.00035616,67]
[312386811,1705852243447,-1000.0,0.00035616,2]
[312386812,1705852243462,-246.31157594,0.00035616,2]
[312386813,1705852243478,-184.0,0.00035616,7]
[312386814,1705852243492,-300.0,0.00035616,7]
[312386815,1705852243501,-150.0,0.00035616,7]
[312386816,1705852243511,-152.98,0.000357,2]
[312386817,1705852243521,-18476.85,0.000357,7]
[312386818,1705852243530,-5165.98,0.000357,7]
[312386819,1705852243539,-8693.98,0.000357,7]
[312386820,1705852243860,-893.41319272,0.000357,2]
[312386821,1705852243871,-243.31,0.000357,3]
[312386822,1705852243881,-243.31,0.000357,3]
[312386823,1705852243891,-243.31,0.000357,3]
[312386824,1705852243901,-243.31,0.000357,3]
[312386825,1705852243910,-243.31,0.000357,3]
[312386826,1705852243920,-243.31,0.000357,3]
[312386827,1705852243929,-243.31,0.000357,3]
[312386828,1705852243939,-243.31,0.000357,3]
[312386829,1705852243950,-243.31,0.000357,3]
[312386830,1705852243959,-243.31,0.000357,3]
[312386831,1705852243968,-243.31,0.000357,3]
[312386832,1705852243978,-243.31,0.000357,3]
[312386833,1705852243987,-243.31,0.000357,3]
[312386834,1705852243996,-243.31,0.000357,3]
[312386835,1705852244006,-243.31,0.000357,3]
[312386836,1705852244015,-243.31,0.000357,3]
[312386837,1705852244025,-243.31,0.000357,3]
[312386838,1705852244036,-243.31,0.000357,3]
[312386839,1705852244045,-243.31,0.000357,3]
[312386840,1705852244054,-243.31,0.000357,3]
[312386841,1705852244064,-279.39505824,0.00035723,7]
[312386842,1705852244073,-1500.0,0.00035759,2]
[312386843,1705852244083,-1000.0,0.00035764,10]
[312386844,1705852244092,-1000.0,0.00035764,10]
[312386845,1705852244103,-1000.0,0.00035764,10]
[312386846,1705852244113,-1000.0,0.00035764,10]
[312386847,1705852244122,-1000.0,0.00035764,10]
[312386848,1705852244131,-1000.0,0.00035764,10]
[312386849,1705852244140,-320.15582722,0.00035764,7]
[312386850,1705852244149,-4853.54540054,0.00035764,6]
[312386851,1705852244158,-1387.59078837,0.00035764,6]
[312386852,1705852244168,-183.86260828,0.00035764,5]
[312386853,1705852244177,-1000.0,0.00035764,10]
[312386854,1705852244186,-1117.1167624,0.00035764,6]
[312386855,1705852244196,-947.3203734,0.00035764,6]
[312386856,1705852244205,-1176.11216628,0.00035764,6]
[312386857,1705852244214,-2426.53968182,0.00035764,6]
[312386858,1705852244223,-1268.73921891,0.00035764,7]
[312386859,1705852244233,-2081.43005404,0.00035764,7]
[312386860,1705852244242,-381.46824747,0.00035764,5]
[312386861,1705852244251,-629.1361468,0.00035764,6]
[312386862,1705852244262,-1141.45774038,0.00035764,6]
[312386863,1705852244272,-2754.82430043,0.00035764,7]
[312386864,1705852244284,-2677.02375105,0.00035764,7]
[312386865,1705852244293,-637.03289097,0.00035764,7]
[312386866,1705852244303,-1000.0,0.00035764,10]
[312386867,1705852244313,-1000.0,0.00035764,10]
[312386868,1705852244323,-1500.0,0.00035766,2]
[312386869,1705852244334,-1469.75757077,0.00035841,7]
[312386870,1705852244354,-767.00484242,0.00035851,7]
[312386871,1705852244367,-173.89946186,0.00035859,7]
[312386872,1705852244377,-520.30042821,0.00035889,4]
[312386873,1705852244387,-150.0,0.000359,2]
[312386874,1705852244397,-1891.96918502,0.000359,14]
[312386875,1705852244407,-625.87,0.000359,2]
[312386876,1705852244417,-150.0,0.00035915,2]
[312386877,1705852244426,-150.0,0.00035921,2]
[312386878,1705852244437,-150.0,0.00035937,7]
[312386879,1705852244447,-150.0,0.00035937,7]
[312386880,1705852244460,-150.0,0.00035937,7]
[312386881,1705852244469,-371.42168099,0.00035978,10]
[312386882,1705852244479,-23550.18892889,0.00035978,10]
[312386883,1705852244489,-158.11921244,0.0003598,7]
[312386884,1705852244498,-200.0,0.00035987,15]
[312386885,1705852244508,-7100.30431289,0.0003599,2]
[312386886,1705852244524,-5857.88063624,0.0003599,2]
[312386887,1705852245693,-390.70377618,0.00025192,2]
[312386918,1705852246351,-56.27622382,0.00025192,2]
[312386919,1705852246363,-1020.46348831,0.00033908,5]
[312386920,1705852246408,-587.2575,0.00033908,5]
[312386921,1705852246420,-969.07632113,0.00033908,5]
[312386922,1705852246430,-446.98,0.00035269,2]
[312386923,1705852246441,-7612.71662116,0.0003599,2]
[312386924,1705852246461,-7039.93932209,0.0003599,2]
[312386925,1705852246473,-6500.39286533,0.0003599,2]
[312386926,1705852246484,-7547.49448585,0.0003599,2]
[312386928,1705852246496,-2510.26457174,0.0003599,2]
[312386931,1705852248230,-247.24074097,0.00025191,2]
[312386932,1705852248241,-1153.79679603,0.0003599,2]
[312386933,1705852248254,-660.32229313,0.0003599,2]
[312386934,1705852248298,-268.11,0.0003599,2]
[312386935,1705852248447,-1000.0,0.0003599,2]
[312386936,1705852248459,-408.5625393,0.0003599,2]
[312386937,1705852248472,-552.59759875,0.0003599,2]
[312386938,1705852248481,-300.0,0.0003599,2]
[312386939,1705852248490,-150.0,0.00035992,2]
[312386940,1705852248499,-150.0,0.00035993,2]
[312386941,1705852248509,-521.09835095,0.00035998,2]
[312386942,1705852248519,-150.0,0.00035999,2]
[312386943,1705852248528,-3945.79302451,0.00036,6]
[312386944,1705852248540,-1980.22,0.00036,6]
[312386945,1705852248565,-1254.78744328,0.00022997,2]
[312386946,1705852248574,-2199.59589598,0.00036,6]
[312386947,1705852248585,-1702.20881862,0.00036,6]
[312386948,1705852248842,-508.705,0.00036,6]
[312386949,1705852248858,-1796.35112459,0.00036,6]
[312386972,1705852273692,15810.9692166,0.00036304,32]
[312386989,1705852399083,600.0,0.00036304,120]
[312387048,1705852451953,181.94520685,0.00036304,60]
[312387049,1705852453825,1000.0,0.00036304,120]
[312387052,1705853044534,150.0,0.00018598,2]
[312387053,1705853044560,56.0,0.00018598,2]
[312387054,1705853054889,273.75,0.0001896,2]
[312387055,1705853091987,150.0,0.00019546,2]
[312387056,1705853092007,150.0,0.00019546,2]
[312387057,1705853099018,504.21645281,0.00019545,2]
[312387058,1705853099849,3146.46623038,0.00019545,2]
[312387059,1705853100752,3031.76013356,0.00019545,2]
[312387060,1705853103108,1813.06536836,0.00019545,2]
[312387061,1705853114244,384.862731,0.00019545,2]
[312387062,1705853115504,7788.44984203,0.00019545,2]
[312387063,1705853115731,265.65725469,0.00019545,2]
[312387064,1705853116178,867.65374985,0.00019545,2]
[312387065,1705853120524,967.36686501,0.00019545,2]
[312387066,1705853122835,651.97477454,0.00019545,2]
[312387067,1705853124683,2903.66792719,0.00019545,2]
[312387068,1705853128538,337.83769447,0.00019545,2]
[312387069,1705853132403,361.93844403,0.00019545,2]
[312387070,1705853133624,941.1417335,0.00019545,2]
[312387071,1705853135242,279.32271034,0.00019545,2]
[312387072,1705853143187,404.56196326,0.00019545,2]
[312387073,1705853143527,1853.57655761,0.00019545,2]
[312387074,1705853146179,1710.31020709,0.00019545,2]
[312387076,1705853291010,-488.35690352,0.00019554,2]
[312387077,1705853291032,-629.27985866,0.00019555,2]
[312387078,1705853291053,-524.11767155,0.00019555,2]
[312387079,1705853291073,-1061.53918762,0.00019555,2]
[312387080,1705853291093,-2613.38075006,0.00019597,2]
[312387081,1705853291113,-3067.86,0.00019598,2]
[312387082,1705853291133,-499.99,0.0002,2]
[312387083,1705853291153,-150.99,0.0002,2]
[312387084,1705853291172,-247.24074097,0.00020687,2]
[312387085,1705853291193,-157.93510011,0.00020688,2]
[312387086,1705853291213,-361.93844403,0.00020697,2]
[312387087,1705853291232,-279.32271034,0.00020697,2]
[312387088,1705853291252,-1377.3390751,0.00020698,2]
[312387089,1705853291271,-6804.65,0.00020698,2]
[312387090,1705853291291,-213.35,0.00020758,2]
[312387091,1705853291315,-20665.79,0.0002083,2]
[312387092,1705853291335,-303.27,0.0002089,2]
[312387093,1705853291356,-250.0,0.00020917,2]
[312387094,1705853291377,-195.46,0.00020929,10]
[312387095,1705853291401,-344.23,0.00020937,2]
[312387096,1705853291422,-1000.0,0.00020943,2]
[312387097,1705853291444,-2000.0,0.00020944,2]
[312387098,1705853291463,-283.28,0.00020953,3]
[312387099,1705853291483,-500.0,0.00020968,2]
[312387100,1705853291503,-750.0,0.00021026,2]
[312387101,1705853291525,-157.11,0.00021113,2]
[312387102,1705853291546,-1000.0,0.00021199,2]
[312387103,1705853291570,-273.75,0.00021224,2]
[312387104,1705853291600,-157.11,0.00021388,2]
[312387105,1705853291619,-186.95,0.00021644,2]
[312387106,1705853291652,-153.05,0.00021646,2]
[312387107,1705853291676,-157.11,0.00021663,2]
[312387108,1705853291697,-150.03,0.00021665,2]
[312387109,1705853291720,-153.05,0.00021701,2]
[312387110,1705853291743,-153.05,0.00021755,2]
[312387111,1705853291765,-153.05,0.00021809,2]
[312387112,1705853291788,-153.05,0.00021863,2]
[312387113,1705853291809,-250.0,0.000219,2]
[312387114,1705853291832,-153.05,0.00021917,2]
[312387115,1705853291854,-250.0,0.00021918,2]
[312387116,1705853291875,-157.11,0.00021938,2]
[312387117,1705853291897,-153.05,0.00021971,2]
[312387118,1705853291918,-1250.0,0.00022,3]
[312387119,1705853322535,203.15955804,0.00019458,2]
[312387120,1705853322559,1354.14974196,0.00019458,2]
[312387121,1705853329745,150.0,0.00019545,2]
[312387122,1705853329765,150.0,0.00019545,2]
[312387123,1705853329785,150.0,0.00019545,2]
[312387124,1705853329812,50.0,0.00019545,2]
[312387125,1705853330575,150.0,0.00019545,2]
[312387126,1705853330595,150.0,0.00019545,2]
[312387127,1705853330614,150.0,0.00019545,2]
[312387128,1705853330634,150.0,0.00019545,2]
[312387129,1705853330654,187.76859307,0.00019545,2]
[312387130,1705853330674,245.60070442,0.00019545,2]
[312387131,1705853431613,150.0,0.00018236,2]
[312387132,1705853431634,43.67028923,0.00018236,2]
[312387139,1705853432159,-247.24074097,0.00021361,2]
[312387140,1705853432168,-206.0,0.00021362,2]
[312387141,1705853432177,-305.66599151,0.00022,2]
[312387142,1705853432187,-2324.54716679,0.00022,2]
[312387144,1705853432197,-153.05,0.00022025,2]
[312387145,1705853432206,-2099.0433469,0.00022025,2]
[312387147,1705853432218,-20076.78434843,0.00022025,2]
[312387149,1705853432447,-1432.18835877,0.00022025,2]
[312387150,1705853432461,-1277.78904127,0.00022025,2]
[312387151,1705853432504,-13736.48201783,0.00022025,2]
[312387152,1705853432513,-153.05,0.00022079,2]
[312387153,1705853432523,-157.11,0.00022213,2]
[312387154,1705853432532,-153.44,0.000223,2]
[312387155,1705853432542,-300.0,0.00022481,2]
[312387156,1705853432552,-344.23,0.00022581,2]
[312387157,1705853432562,-155.68798217,0.00022697,2]
[312387158,1705853432575,-835.52772,0.00022697,2]
[312387160,1705853432604,-4796.99387274,0.00022697,2]
[312387161,1705853432624,-492.53592509,0.00022697,2]
[312387162,1705853432633,-417.26,0.00022697,2]
[312387163,1705853432643,-206.29761826,0.00022768,2]
[312387164,1705853432652,-286.73899009,0.00022795,2]
[312387165,1705853432662,-940.73042275,0.00022795,2]
[312387166,1705853432671,-1044.24818187,0.00022795,2]
[312387167,1705853432680,-376.99778684,0.00022795,2]
[312387168,1705853432690,-354.6188197,0.00022795,2]
[312387169,1705853432699,-766.87003814,0.00022795,2]
[312387170,1705853432708,-289.03050661,0.00022795,2]
[312387171,1705853432717,-242.93320349,0.00022795,2]
[312387172,1705853432726,-155.45683396,0.00022795,2]
[312387173,1705853432735,-163.4996424,0.00022795,2]
[312387177,1705853438694,-524.11767155,0.0002136,2]
[312387178,1705853438703,-25.88232845,0.00022795,2]
[312387180,1705853438715,-13.94926092,0.00022795,2]
[312387182,1705853438724,-307.42593914,0.00022795,2]
[312387184,1705853438733,-345.76613305,0.00022795,2]
[312387185,1705853438742,-97.50866689,0.00022795,2]
[312387191,1705853438781,-239.58206863,0.00022795,2]
[312387193,1705853438791,-181.62975253,0.00022795,2]
[312387195,1705853438800,-14741.02577592,0.00022795,2]
[312387199,1705853438828,-3592.17288131,0.00022795,2]
[312387201,1705853438838,-324.93079599,0.00022795,2]
[312387203,1705853438847,-240.89008817,0.00022795,2]
[312387205,1705853438856,-209.38155424,0.00022795,2]
[312387207,1705853438865,-221.331888,0.00022795,2]
[312387209,1705853438875,-156.93056967,0.00022795,2]
[312387211,1705853438883,-177.65890692,0.00022795,2]
[312387213,1705853438893,-760.31366603,0.00022795,2]
[312387215,1705853438902,-1811.85535508,0.00022795,2]
[312387217,1705853438911,-3029.62518172,0.00022795,2]
[312387219,1705853438920,-773.75615812,0.00022795,2]
[312387221,1705853438929,-525.01057973,0.00022795,2]
[312387223,1705853438938,-384.44504338,0.00022795,2]
[312387225,1705853438948,-264.48223811,0.00022795,2]
[312387227,1705853438957,-537.20957409,0.00022795,2]
[312387229,1705853438966,-325.43273473,0.00022795,2]
[312387231,1705853438975,-651.54941536,0.00022795,2]
[312387233,1705853438984,-337.35451669,0.00022795,2]
[312387235,1705853438994,-2899.83113271,0.00022795,2]
[312387237,1705853439003,-298.68681086,0.00022795,2]
[312387239,1705853439012,-404.03667643,0.00022795,2]
[312387241,1705853439021,-1852.29318255,0.00022795,2]
[312387243,1705853439030,-174.53823049,0.00022795,2]
[312387245,1705853439039,-2304.47643999,0.00022795,2]
[312387247,1705853439048,-365.09221036,0.00022795,2]
[312387249,1705853439058,-362.66830346,0.00022795,2]
[312387251,1705853439067,-487.51806122,0.00022795,2]
[312387253,1705853439076,-408.26390936,0.00022795,2]
[312387255,1705853439085,-12580.52234455,0.00022795,2]
[312387257,1705853439095,-1045.63403066,0.00022796,2]
[312387259,1705853439104,-221.4202,0.00022797,2]
[312387261,1705853439113,-100000.0,0.00022797,2]
[312387263,1705853439122,-2500.0,0.000228,2]
[312387265,1705853439131,-5000.0,0.000229,2]
[312387267,1705853439140,-729.7838,0.000229,2]
[312387269,1705853439150,-183.33900827,0.000229,2]
[312387271,1705853439159,-885.51935792,0.000229,2]
[312387273,1705853439169,-209.0,0.000229,2]
[312387275,1705853439178,-378.62352867,0.000229,2]
[312387277,1705853439187,-9177.57219954,0.000229,2]
[312387279,1705853439196,-3679.30863627,0.00022997,4]
[312387281,1705853439206,-349.90420283,0.00022998,2]
[312387283,1705853439215,-2947.80727048,0.00022998,2]
[312387285,1705853439225,-400.0,0.00022998,2]
[312387287,1705853439234,-1178.56113027,0.00022998,2]
[312387289,1705853439243,-500.0,0.00022999,2]
[312387291,1705853439252,-1616543.82932632,0.00023,3]
[312387293,1705853439261,-3278456.39970208,0.00023,2]
[312387295,1705853439273,-368232.93041353,0.00023,2]
[312387298,1705853439286,-354584.75924408,0.00023,2]
[312387306,1705853439356,-2295.1978,0.00023,2]
[312387317,1705853439478,-735.92258745,0.00023,2]
[312387457,1705853440709,-50032.93983333,0.00023,2]
[312387462,1705853440746,-675.94907965,0.00023,2]
[312387464,1705853440758,-409.47044411,0.00023,2]
[312387467,1705853440770,-328.47254611,0.00023,2]
[312387573,1705853444546,-640.79833317,0.00023,2]
[312387574,1705853444558,-9121.76654697,0.00023,2]
[312387575,1705853444569,-133671.25584187,0.00023,2]